Workbook

Sheet Data & Calculations
A1: Year | B1: Water Year Index | C1: Oakdale RST Expanded Passage | D1: Caswell RST Expanded Passage | E1: Adult Production | F1: Ocean Harvest | G1: Freshwater Harvest | H1: Totatl Harvest | I1: =CONCATENATE("Grandtab Escapement", " (geomean=", ROUND(GEOMEAN(I2:I37),0),")") -> Grandtab Escapement (geomean=2054) | J1: =CONCATENATE("Weir Escapement", " (geomean=", ROUND(GEOMEAN(J2:J37),0),")") -> Weir Escapement (geomean=2008) | K1: Median % females | L1: Median fecundity | M1: =CONCATENATE("Ocean Production : Spawning Escapement", " (geomean=", ROUND(GEOMEAN(M2:M37),3),")") -> Ocean Production : Spawning Escapement (geomean=0.602) | N1: Estimated Egg Deposition | O1: =CONCATENATE("Oakdale to Caswell", " (geoman=", ROUND(GEOMEAN(O2:O37),3),")") -> Oakdale to Caswell (geoman=0.16) | P1: =CONCATENATE("Eggs to Oakdale RST", " (geomean=", ROUND(GEOMEAN(P2:P37),2),")") -> Eggs to Oakdale RST (geomean=0.11) | Q1: =CONCATENATE("Eggs to Caswell RST", " (geomean=", ROUND(GEOMEAN(Q2:Q37),3),")") -> Eggs to Caswell RST (geomean=0.019) | R1: =CONCATENATE("Calculated Caswell to Vernalis", " (geomean=", ROUND(GEOMEAN(R2:R37),2),")") -> Calculated Caswell to Vernalis (geomean=0.54) | S1: =CONCATENATE("Eggs to Vernalis", " (geomean=", ROUND(GEOMEAN(S2:S37),3),")") -> Eggs to Vernalis (geomean=0.009)
A2: 1995 | B2: Wet | E2: 2241 | F2: 1591.6889 | G2: 30.95 | H2: 1622.6389 | I2: 619 | K2: 0.6 | L2: 5813 | M2: =I2/E2 -> 0.276215975 | N2: =PRODUCT(I2,K2,L2) -> 2158948.2 | O2: =IF(C2>0,D2/C2,".") -> . | P2: =IF(C2>0,C2/N2,".") -> . | Q2: =IF(D2>0,D2/N2,".") -> . | R2: =IF(C2>0, (O2^(1/32.1) + 3.75^(1/54.5))/2, ".") -> . | S2: =IF(C2>0, Q2*R2, ".") -> .
A3: 1996 | B3: Wet | C3: 245892 | D3: 70885 | E3: 365 | F3: 188.7653 | G3: 8.4 | H3: 197.1653 | I3: 168 | K3: =K2 -> 0.6 | L3: =L2 -> 5813 | M3: =I3/E3 -> 0.4602739726 | N3: =PRODUCT(I3,K3,L3) -> 585950.4 | O3: =IF(C3>0,D3/C3,".") -> 0.2882769671 | P3: =IF(C3>0,C3/N2,".") -> 0.1138943491 | Q3: =IF(D3>0,D3/N2,".") -> 0.03283311753 | R3: =IF(C3>0, ((O3^(1/32.1) + 0.0375^(1/54.5))/2)^10.5, ".") -> 0.5950461071 | S3: 0.01953721877
A4: 1997 | B4: Wet | D4: 98287 | E4: 14424 | F4: 8422.3384 | G4: 279.4 | H4: 8701.7384 | I4: 5588 | K4: =K3 -> 0.6 | L4: =L3 -> 5813 | M4: 0.3874098724 | N4: 19489826.4 | O4: . | P4: =IF(C4>0,C4/N3,".") -> . | Q4: =IF(D4>0,D4/N3,".") -> 0.1677394537 | R4: =IF(C4>0, ((O4^(1/32.1) + 0.0375^(1/54.5))/2)^10.5, ".") -> . | S4: .
A5: 1998 | B5: Wet | C5: 954312 | D5: 1152154 | E5: 6145 | F5: 2840.8425 | G5: 154.35 | H5: 2995.1925 | I5: 3087 | K5: 0.6 | L5: 5813 | M5: 0.502359642 | N5: =PRODUCT(I5,K5,L5) -> 10766838.6 | O5: 1.207313751 | P5: 0.0489646229 | Q5: =IF(D5>0,D5/N4,".") -> 0.05911566252 | R5: =IF(C5>0, ((O5^(1/32.1) + 0.0375^(1/54.5))/2)^10.5, ".") -> 0.7559777842 | S5: 0.04469012756
A6: 1999 | B6: Above | C6: 3889456 | D6: 1457859 | E6: 7577 | F6: 2980.4825 | G6: 217.45 | H6: 3197.9325 | I6: 4349 | K6: 0.6 | L6: 5813 | M6: 0.5739738683 | N6: 15168442.2 | O6: 0.3748233686 | P6: 0.3612440146 | Q6: 0.1354026984 | R6: 0.6214937478 | S6: 0.08415193051
A7: 2000 | B7: Above | C7: 2818845 | D7: 2060282 | E7: 17671 | F7: 8636.4462 | G7: 424.9 | H7: 9061.3462 | I7: 8498 | K7: 0.6 | L7: 5813 | M7: =I7/E7 -> 0.4809009111 | N7: 29639324.4 | O7: 0.7308958102 | P7: 0.1858361566 | Q7: 0.1358268682 | R7: =IF(C7>0, ((O7^(1/32.1) + 0.0375^(1/54.5))/2)^10.5, ".") -> 0.6947391821 | S7: 0.09436424734
A8: 2001 | B8: Dry | C8: 1119203 | D8: 178557 | E8: 9503 | F8: 2119.6159 | G8: 351.65 | H8: 2471.2659 | I8: 7033 | K8: 0.6 | L8: 5813 | M8: =I8/E8 -> 0.7400820793 | N8: =PRODUCT(I8,K8,L8) -> 24529697.4 | O8: 0.1595394222 | P8: 0.03776074599 | Q8: 0.006024327599 | R8: 0.5398453268 | S8: 0.003252205101
A9: 2002 | B9: Dry | C9: 993796 | D9: 78505 | E9: 11527 | F9: 3351.3517 | G9: 389.35 | H9: 3740.7017 | I9: 7787 | K9: 0.6 | L9: 5813 | M9: =I9/E9 -> 0.6755443741 | N9: 27159498.6 | O9: 0.07899508551 | P9: 0.04051399346 | Q9: 0.003200406378 | R9: 0.481436606 | S9: 0.001540792784
A10: 2003 | B10: Below | C10: 1742219 | D10: 119654 | E10: 8753 | F10: 2527.003 | G10: 295.1 | H10: 2822.103 | I10: 5902 | J10: 4848 | K10: 0.6 | L10: 5813 | M10: 0.6742831029 | N10: 20584995.6 | O10: 0.0686790811 | P10: 0.06414768644 | Q10: 0.004405604159 | R10: 0.4706559924 | S10: 0.002073523998
A11: 2004 | B11: Dry | C11: 2467746 | D11: 327083 | E11: 8623 | F11: 4410.5752 | G11: 200.75 | H11: 4611.3252 | I11: 4015 | J11: 4408 | K11: 0.6 | L11: 5813 | M11: =I11/E11 -> 0.4656152151 | N11: 14003517 | O11: 0.1325432196 | P11: 0.1198808126 | Q11: 0.01588938887 | R11: 0.5237216926 | S11: 0.008321617634
A12: 2005 | B12: Wet | C12: 1304977 | D12: 266763 | E12: 2532 | F12: 1033.9949 | G12: 71.35 | H12: 1105.3449 | I12: 1427 | J12: 4121 | K12: 0.6 | L12: 5813 | M12: 0.5635860979 | N12: 4977090.6 | O12: 0.2044196948 | P12: 0.09318923239 | Q12: 0.01904971444 | R12: 0.5622602929 | S12: 0.01071089802
A13: 2006 | B13: Wet | C13: 4414407 | D13: 156185 | E13: 2671 | F13: 652.1748 | G13: 96.15 | H13: 748.3248 | I13: 1923 | J13: 3056 | K13: 0.6 | L13: 5813 | M13: 0.719955073 | N13: 6707039.4 | O13: 0.0353807431 | P13: 0.8869452768 | Q13: 0.03138078298 | R13: 0.4230395205 | S13: 0.01327531139
A14: 2007 | B14: Critical | C14: 867739 | D14: 69959 | E14: 824 | F14: 376.9291 | G14: 22.15 | H14: 399.0791 | I14: 443 | J14: 408 | K14: 0.6 | L14: 5813 | M14: 0.5376213592 | N14: 1545095.4 | O14: 0.08062216865 | P14: 0.1293773524 | Q14: 0.01043068272 | R14: 0.4830297212 | S14: 0.005038329768
A15: 2008 | B15: Critical | C15: 134216 | D15: 17833 | E15: 865 | I15: 865 | J15: 923 | K15: 0.6 | L15: 5813 | M15: 1 | N15: 3016947 | O15: 0.1328679144 | P15: 0.08686583366 | Q15: 0.01154168215 | R15: 0.5239310304 | S15: 0.006047045422
A16: 2009 | B16: Below | C16: 160541 | D16: 8704 | E16: 595 | I16: 595 | J16: 1303 | K16: 0.6 | L16: 5813 | M16: 1 | N16: 2075241 | O16: 0.05421667985 | P16: 0.05321306606 | Q16: 0.002885035766 | R16: 0.4530372422 | S16: 0.001307028647
A17: 2010 | B17: Above | D17: 26242 | E17: 1222 | F17: 248.8473 | H17: 248.8473 | I17: 1086 | J17: 1363 | K17: 0.6 | L17: 5813 | M17: 0.8887070376 | N17: 3787750.8 | O17: =IF(C17>0,D17/C17,".") -> . | P17: . | Q17: 0.01264527831 | R17: . | S17: .
A18: 2011 | B18: Wet | D18: 31113 | E18: 1669 | I18: 1309 | J18: 818 | K18: 0.6 | L18: 5813 | M18: 0.7843019772 | N18: 4565530.2 | O18: . | P18: . | Q18: 0.008214109545 | R18: . | S18: .
A19: 2012 | B19: Dry | D19: 105821 | E19: 6665 | I19: 4006 | J19: 7248 | K19: 0.6 | L19: 5813 | M19: 0.6010502626 | N19: 13972126.8 | O19: . | P19: . | Q19: 0.02317824992 | R19: . | S19: .
A20: 2013 | E20: 4238 | I20: 2845 | K20: 0.6 | L20: 5813 | M20: 0.6713072204 | N20: 9922791 | O20: . | P20: . | Q20: . | R20: . | S20: .
A21: 2014
A22: 2015
A23: 2016
A24: 2017
A25: 2018
A26: 2019
A27: 2020
A28: 2021
A29: 2022
A30: 2023
A31: 2024
A32: 2025
A33: 2026
A34: 2027
A35: 2028
A36: 2029
A37: 2030

Sheet Survival Allocation
A1: Table 1. Calculated recruits per spawner based on consensus estimates | H1: Table 5. Reach-specific calculations for pre-marine entry survival
A2: Reach | B2: USDOI (2011) | C2: NMFS (2012) | D2: Consensus Estimate | E2: RM | F2: Survival/RM | H2: Current7 | I2: Current Weighting of Survival Upstream vs. Downstream of Oakdale | J2: Reach | K2: River miles | L2: Objective A | M2: Objective B | N2: Objective C
A3: Eggs to Caswell | B3: 0.0664 | C3: 0.0564 | D3: =GEOMEAN('Data & Calculations'!Q2:Q20) -> 0.01866213892 | E3: 46.5 | F3: =D3^(1/46.5) -> 0.9179443955 | H3: =$D$4 -> 0.1061672964 | I3: =H3/H4 -> 0.6625239244 | J3: Eggs to Oakdale | K3: 14.4 | L3: =SQRT($L$5)*I3 -> 0.1875025267 | M3: =SQRT($M$5)*I3 -> 0.2163621558 | N3: =SQRT($N$5)*I3 -> 0.3271191255
A4: Eggs to Oakdale | B4: - | C4: - | D4: =GEOMEAN('Data & Calculations'!P2:P20) -> 0.1061672964 | E4: 14.4 | F4: =D4^(1/14.4) -> 0.8557767225 | H4: =$D$5 -> 0.160246736 | I4: =H4/H3 -> 1.509379455 | J4: Oakdale to Caswell | K4: 32.1 | L4: =SQRT($L$5)*I4 -> 0.4271731952 | M4: =SQRT($M$5)*I4 -> 0.4929219622 | N4: =SQRT($N$5)*I4 -> 0.7452514079
A5: Oakdale to Caswell | B5: - | C5: - | D5: =GEOMEAN('Data & Calculations'!O2:O20) -> 0.160246736 | E5: =32.1 -> 32.1 | F5: =D5^(1/32.1) -> 0.9445546223 | H5: =$D$3 -> 0.01866213892 | J5: Eggs to Caswell | K5: =K3+K4 -> 46.5 | L5: =E15/L6 -> 0.08009605346 | M5: =E24/M6 -> 0.1066496584 | N5: =E33/N6 -> 0.2437859888
A6: Caswell to Vernalis 1 | B6: - | C6: - | D6: =GEOMEAN('Data & Calculations'!R2:R20) -> 0.540910567 | E6: 10.5 | F6: =D6^(1/10.5) -> 0.9431556651 | H6: =$D$6 -> 0.540910567 | J6: Caswell to Vernalis 8 | K6: 10.5 | L6: =AVERAGE(F15:F16)^10.5 -> 0.6824595767 | M6: =AVERAGE(F24:F25)^10.5 -> 0.7219602945 | N6: =AVERAGE(F33:F34)^10.5 -> 0.8203916926
A7: Vernalis to Chipps Island | B7: 0.05 | C7: 0.0375 | D7: 0.0375 | E7: 72.5 | F7: 0.9557 | H7: =$D$7 -> 0.0375 | J7: Vernalis to Chipps Island | K7: 72.5 | L7: =E16 -> 0.2030637651 | M7: =E25 -> 0.286033675 | N7: =E34 -> 0.5
A8: Chipps Island to Adult2 | B8: - | C8: - | D8: 0.054026 | E8: - | F8: - | H8: =PRODUCT(H5:H7) -> 0.0003785455554 | J8: Freshwater Survival | L8: =PRODUCT(L5:L7) -> 0.01109993625 | M8: =PRODUCT(M5:M7) -> 0.02202368304 | N8: =PRODUCT(N5:N7) -> 0.1
A9: Adult to Spawner | B9: 0.5 | C9: 0.7 | D9: =GEOMEAN('Data & Calculations'!M2:M20) -> 0.6024148555 | E9: - | F9: - | H9: 7 Estimated survival rates from Egg-to-Oakdale and Oakdale-to-Caswell were calculated annually only for those years in which sampling data are available from Oakdale RST. The product of Egg-to-Oakdale and Oakdale-to-Caswell values do not equal the current Egg-to-Caswell survival estimate because time series differ for Oakdale and Caswell data sets. Thus, only the proportional survival from "Eggs-to-Oakdale" and "Oakdale-to-Caswell" was used to estimate survival guidance for the reach above Oakdale. The Egg-Oakdale survival guidance target represents the proportional survival above and below Oakdale applied to the respective "Eggs-to-Caswell" survival objective listed here.
A10: Recruits per Spawner | D10: =(PRODUCT('Data & Calculations'!$K$2:$L$2))*(PRODUCT('Survival Allocation'!D3,D6:D9)) -> 0.04297028281
A11: 1 Based on average between Oakdale to Caswell and Vernalis to Chipps estimates, adjusted by river miles
A12: 2 Geometric mean of the lower 95% confidence bounds for annual estimates calculated by Michel (2018)
A13: Table 2. Calculated survival required to achieve Objective A (1.26 recruits per spawner) 3
A14: Reach | B14: Current | C14: RM | D14: Increase | E14: Target Survival | F14: Target Survival/RM | H14: 8 Based on average of per RM survival rates for (1) Eggs to Vernalis and (2) Vernalis to Chipps Island as derived from "current" and each objective, respectively.
A15: Eggs to Vernalis | B15: =D3*D6 -> 0.01009454814 | C15: 57 | D15: =SQRT($E$19/$D$10) -> 5.415033735 | E15: =PRODUCT(B15,D15) -> 0.05466231874 | F15: =E15^(1/C15) -> 0.9502856613
A16: Vernalis to Chipps Island | B16: =$D$7 -> 0.0375 | C16: 72.5 | D16: =SQRT($E$19/$D$10) -> 5.415033735 | E16: =PRODUCT(B16,D16) -> 0.2030637651 | F16: =E16^(1/C16) -> 0.978250554
A17: Chipps Island to Adult | B17: =$D$8 -> 0.054026 | C17: - | D17: - | E17: =$D$8 -> 0.054026 | F17: -
A18: Adult to Spawner | B18: =$D$9 -> 0.6024148555 | C18: - | D18: - | E18: =$D$9 -> 0.6024148555 | F18: -
A19: Recruits per Spawner | E19: 1.26
A20: 3 Population growth rate of two-fold over three generations
A22: Table 3. Calculated survival required to achieve Objective B (2.5 recruits per spawner) 4 | I22: Table 6. Actual survival objectives as they appear in the text. Egg-to-Oakdale survival is guidance for attaining Egg-to-Caswell Objective. For Objective A and Objective B, guidance target is less than implied by proportionate increase in survival before and after Oakdale, though it may be exceeded in practice; for Objective C, guidance target represents typical egg-to-fry survival (Quinn 2005).
A23: Reach | B23: Current | C23: RM | D23: Increase | E23: Target Survival | F23: Target Survival/RM
A24: Eggs to Vernalis | B24: =$D$3*$D$6 -> 0.01009454814 | C24: 57 | D24: =SQRT($E$28/$D$10) -> 7.627564668 | E24: =PRODUCT(B24,D24) -> 0.07699681876 | F24: =E24^(1/C24) -> 0.9560144019 | I24: Reach | J24: River miles | K24: Current | L24: Objective A | M24: Objective B | N24: Objective C
A25: Vernalis to Chipps Island | B25: =$D$7 -> 0.0375 | C25: 72.5 | D25: =SQRT($E$28/$D$10) -> 7.627564668 | E25: =PRODUCT(B25,D25) -> 0.286033675 | F25: =E25^(1/C25) -> 0.9828840913 | I25: Eggs to Oakdale | J25: 14.4 | K25: =D4 -> 0.1061672964 | L25: 0.18 | M25: 0.21 | N25: 0.35
A26: Chipps Island to Adult | B26: =$D$8 -> 0.054026 | C26: - | D26: - | E26: =$D$8 -> 0.054026 | F26: - | I26: Oakdale to Caswell 9 | J26: 32.1 | K26: =D5 -> 0.160246736 | L26: xx | M26: yy | N26: zz
A27: Adult to Spawner | B27: =$D$9 -> 0.6024148555 | C27: - | D27: - | E27: =$D$9 -> 0.6024148555 | F27: - | I27: Eggs to Caswell | J27: 46.5 | K27: =D3 -> 0.01866213892 | L27: 0.08 | M27: 0.107 | N27: 0.244
A28: Recruits per Spawner | E28: 2.5 | I28: Caswell to Vernalis | J28: 10.5 | K28: =D6 -> 0.540910567 | L28: 0.682 | M28: 0.722 | N28: 0.82
A29: 4 Population resilience | I29: Vernalis to Chipps Island | J29: 72 | K29: =D7 -> 0.0375 | L29: 0.203 | M29: 0.286 | N29: 0.5
I30: Freshwater Survival | K30: =K27*K28*K29 -> 0.0003785455554 | L30: 0.0111 | M30: 0.022 | N30: 0.1
A31: Table 4. Calculated survival required to achieve Objective C (10% freshwater survival) 5 | I31: 9 xx, yy, zz represent the survival needed to achieve overall egg-to-caswell survival objectives (e.g., "Oakdale to Caswell %" = "Egg to Caswell %" / actual "Egg to Oakdale %")
A32: Reach | B32: Current | C32: RM | D32: Increase | E32: Target Survival | F32: Target Survival/RM
A33: Eggs to Vernalis | B33: =$D$3*$D$6 -> 0.01009454814 | C33: 57 | D33: =SQRT(0.1/($D$3*$D$6*$D$7)) -> 16.25327653 | E33: 0.2 | F33: =E33^(1/C33) -> 0.9721591505
A34: Vernalis to Chipps Island 6 | B34: =$D$7 -> 0.0375 | C34: 72.5 | D34: =D33 -> 16.25327653 | E34: 0.5 | F34: =E34^(1/C34) -> 0.990484907
A35: Chipps Island to Adult | B35: =$D$8 -> 0.054026 | C35: - | D35: - | E35: =$D$8 -> 0.054026 | F35: -
A36: Adult to Spawner | B36: =$D$9 -> 0.6024148555 | C36: - | D36: - | E36: =$D$9 -> 0.6024148555 | F36: -
A37: Recruits per Spawner | E37: =(PRODUCT('Data & Calculations'!$K$2:$L$2)*(PRODUCT('Survival Allocation'!E33:E36))) -> 11.35141655
A38: 5 Based on published values
A39: 6 Capped at 50%

Sheet Interactive Calculations
B1: Table 7. Estimated recruits per spawner based on interactive values
B3: Reach | C3: Value | D3: Units | E3: RM | F3: S/RM | N3: =I20*C4*C5*0.01 -> 6975600
B4: Proportion of females | C4: 60 | D4: % | E4: - | F4: - | M4: Fry to Oakdale | N4: =N3*C6*0.01 -> 740808.72
B5: Fecundity | C5: 5813 | D5: n | E5: - | F5: - | M5: Juv to Caswell | N5: 118677.5569
B6: Eggs to Oakdale | C6: 10.62 | D6: % | E6: 14.4 | F6: =(C6/100)^(1/E6) -> 0.8557950263 | M6: Juv to Vernalis | N6: 64192.69055
B7: Oakdale to Caswell | C7: 16.02 | D7: % | E7: 32.1 | F7: =(C7/100)^(1/E7) -> 0.9445460392 | M7: Smolts to Chipps | N7: 2407.225896
B8: Caswell to Vernalis | C8: 54.09 | D8: % | E8: 10.5 | F8: =(C8/100)^(1/E8) -> 0.9431539103 | M8: Ocean Production | N8: 129.9901984
B9: Vernalis to Chipps Island | C9: 3.75 | D9: % | E9: 54.5 | F9: =(C9/100)^(1/E9) -> 0.9415327611 | M9: Spawners | N9: 78.3060955
B10: Chipps Island to Adult | C10: 5.4 | D10: % | E10: - | F10: -
B11: Adult to Spawner | C11: 60.24 | D11: % | E11: - | F11: - | I11: 60
B12: Recruits per Spawner | C12: =(C4/100)*(C5)*(C6/100)*(C7/100)*(C8/100)*(C9/100)*(C10/100)*(C11/100) -> 0.03915304775
B14: Notes
B15: Objective A: Population growth rate of two-fold over three generations (recruits per spawner of 1.26)
B16: Objective B: Population resilience (recruits per spawner of 2.5)
B17: Objective C: Sustainability (typical survival rate for Chinook salmon in freshwater = 10%) (recruits per spawner of 5.95)
B19: Table 7. Reference performance measures based on objectives
D20: Objective | H20: # Spawners | I20: 2000
B21: Reach | C21: Current | D21: A | E21: B | F21: C
B22: Eggs to Caswell | C22: ='Survival Allocation'!D3 -> 0.01866213892 | D22: ='Survival Allocation'!L5 -> 0.08009605346 | E22: ='Survival Allocation'!M5 -> 0.1066496584 | F22: ='Survival Allocation'!N5 -> 0.2437859888
B23: Eggs to Oakdale | C23: ='Survival Allocation'!D4 -> 0.1061672964 | D23: ='Survival Allocation'!L25 -> 0.18 | E23: ='Survival Allocation'!M25 -> 0.21 | F23: ='Survival Allocation'!N25 -> 0.35
B24: Oakdale to Caswell10 | C24: ='Survival Allocation'!D5 -> 0.160246736 | D24: ='Survival Allocation'!L26 -> xx | E24: ='Survival Allocation'!M26 -> yy | F24: ='Survival Allocation'!N26 -> zz
B25: Caswell to Vernalis | C25: ='Survival Allocation'!D6 -> 0.540910567 | D25: ='Survival Allocation'!L6 -> 0.6824595767 | E25: ='Survival Allocation'!M6 -> 0.7219602945 | F25: ='Survival Allocation'!N6 -> 0.8203916926
B26: Vernalis to Chipps Island | C26: ='Survival Allocation'!$D$7 -> 0.0375 | D26: ='Survival Allocation'!L7 -> 0.2030637651 | E26: ='Survival Allocation'!M7 -> 0.286033675 | F26: ='Survival Allocation'!N7 -> 0.5
B27: Chipps Island to Adult | C27: ='Survival Allocation'!$D$8 -> 0.054026 | D27: ='Survival Allocation'!$D$8 -> 0.054026 | E27: ='Survival Allocation'!$D$8 -> 0.054026 | F27: ='Survival Allocation'!$D$8 -> 0.054026
B28: Adult to Spawner | C28: ='Survival Allocation'!$D$9 -> 0.6024148555 | D28: ='Survival Allocation'!$D$9 -> 0.6024148555 | E28: ='Survival Allocation'!$D$9 -> 0.6024148555 | F28: ='Survival Allocation'!$D$9 -> 0.6024148555
B29: Recruits per Spawner | C29: =C22*C25*C26*C27*C28*0.6*5813 -> 0.04297028281 | D29: =D22*D25*D26*D27*D28*(0.6)*(5813) -> 1.26 | E29: =E22*E25*E26*E27*E28*(0.6)*(5813) -> 2.5 | F29: 11.35141655
B30: 10 xx, yy, zz represent the survival needed to achieve overall egg-to-caswell survival objectives (e.g., "Oakdale to Caswell %" = "Egg to Caswell %" / actual "Egg to Oakdale %")

Sheet Stan sex ratio + fecundity
A1: Stanislaus River Escapement data from Domenic Guidice via Stephen Louie (CDFW)
A3: Year | B3: % females | C3: Eggs per female | E3: “An estimate for the number of eggs produced by the 2005 fall run was generated using a standard regression equation (158.45 * fork length cm – 6138.91 = number of eggs). This fork length-fecundity relationship was determined for 48 San Joaquin fall-run chinook salmon females ranging from 62.5 to 94.0 cm fork length (Loudermilk et al. 1990).”
A4: 1995 | B4: 0.4722222222 | C4: 5190.265
A5: 1996 | B5: 0.4375 | C5: 4545.147143
A6: 1997 | B6: 0.5456053068 | C6: 5372.360615
A7: 1998 | B7: na | C7: na
A8: 1999 | B8: 0.5 | C8: 5343.034717
A9: 2000 | B9: 0.6270430906 | C9: 5938.960024
A10: 2001 | B10: 0.6067653277 | C10: 6404.72628
A11: 2002 | B11: 0.5989528796 | C11: 5929.328986
A12: 2003 | B12: 0.5930533955 | C12: 5935.838733
A13: 2004 | B13: 0.6025293586 | C13: 5540.066537
A14: 2005 | B14: 0.6777777778 | C14: 5796.271311
A15: 2006 | B15: 0.7075098814 | C15: 6090.066257
A16: 2007 | B16: 0.375 | C16: 6026.528889
A17: 2008 | B17: 0.6203703704 | C17: 5870.181045
A18: 2009 | B18: 0.4456521739 | C18: 5661.65375
A19: 2010 | B19: 0.4545454545 | C19: 5728.995
A20: 2011 | B20: 0.5162601626 | C20: 4961.947283
A21: 2012 | B21: 0.6460957179 | C21: 5830.087953
A22: 2013 | B22: 0.6276595745 | C22: 6116.943861
A24: Max | B24: =MAX(B4:B22) -> 0.7075098814 | C24: =MAX(C4:C22) -> 6404.72628
A25: Average | B25: =AVERAGE(B4:B22) -> 0.5585857052 | C25: =AVERAGE(C4:C22) -> 5682.355744
A26: Median | B26: =MEDIAN(B4:B22) -> 0.5960031376 | C26: =MEDIAN(C4:C22) -> 5813.179632
A27: Min | B27: =MIN(B4:B22) -> 0.375 | C27: =MIN(C2:C22) -> 4545.147143
